Cogmind - Beta 16.1 @@@ ROGUE MODE // 2026.03.13 @ 14:37:09 Player: TheSkyeDoctor Result: Destroyed by Y-45 Defender with Beam Rifle Performance ------------- Evolutions (2) 1000 Regions Visited (4) 800 Robots Destroyed (38) 190 Value Destroyed (910) 910 Prototype IDs (0) 0 Alien Tech Used (0) 0 Bonus (200) 200 TOTAL SCORE: 3100 Bonus ------- Entered Garrisons 200 Cogmind --------- Core Integrity 0/550 Matter 228/300 Energy 80/100 System Corruption 0% Temperature Cool (33) Movement Treading (160) Location -8/Garrison Parts ------- > --- POWER (1) -------- (None) > --- PROPULSION (2) --- Light Treads Light Treads > --- UTILITY (5) ------ Large Storage Unit Signal Interpreter > --- WEAPON (3) ------- (None) > --- INVENTORY (15) --- Wheel Wheel Improved Terrain Scanner Seismic Detector Plasma Cutter Peak State ------------ > --- POWER ------------ Improved Ion Engine > --- PROPULSION ------- Light Treads Light Treads > --- UTILITY ---------- Large Storage Unit Signal Interpreter Improved Terrain Scanner Seismic Detector Hardened Medium Armor Plating > --- WEAPON ----------- Beam Cannon Heavy Assault Rifle Hammer > --- INVENTORY -------- Light Treads Wheel Wheel Heat Sink Light Armor Plating Medium Laser Field Laser Mini Grenade Launcher Plasma Cutter [Rating: 18] Favorites ----------- Power Light Ion Engine Engine Light Ion Engine Propulsion Light Treads Treads Light Treads Wheel Wheel Utility Large Storage Unit Device Seismic Detector Storage Large Storage Unit Processor Signal Interpreter Protection Hardened Medium Armor Plating Weapon Hammer Energy Gun Medium Laser Energy Cannon Beam Cannon Ballistic Gun Heavy Assault Rifle Launcher Mini Grenade Launcher Special Weapon Mining Laser Impact Weapon Hammer Build | -11 -10 -9 -8 -8 ------- Run | Yrd Mat Mat Mat Gar Slots Evolved 4 | . . 2 2 . Power . | . . . . . Propulsion . | . . . . . Utility 3 | . . 2 1 . Weapon 1 | . . . 1 . Parts Attached 29 | 8 3 10 . 8 Power 4 | 1 1 1 . 1 Engine 4 | 1 1 1 . 1 Core . | . . . . . Reactor . | . . . . . Propulsion 6 | 3 . 1 . 2 Treads 5 | 2 . 1 . 2 Leg . | . . . . . Wheel 1 | 1 . . . . Hover . | . . . . . Flight . | . . . . . Utility 10 | 2 1 3 . 4 Device 4 | 1 . 1 . 2 Storage 2 | 1 1 . . . Processor 1 | . . 1 . . Hackware . | . . . . . Protection 3 | . . 1 . 2 Artifact . | . . . . . Weapon 9 | 2 1 5 . 1 Energy Gun 2 | 1 . 1 . . Energy Cannon 2 | . . 2 . . Ballistic Gun 2 | 1 . 1 . . Ballistic Cannon . | . . . . . Launcher 1 | . . . . 1 Special Weapon 1 | . 1 . . . Impact Weapon 1 | . . 1 . . Slashing Weapon . | . . . . . Piercing Weapon . | . . . . . Special Melee Weapon . | . . . . . Unidentified Prototypes . | . . . . . Parts Lost 19 | . 1 3 . 15 Power 4 | . 1 1 . 2 Propulsion 3 | . . 1 . 2 Utility 5 | . . . . 5 Weapon 7 | . . 1 . 6 Highest Loss Streak 15 | . 1 2 . 15 To Critical Strikes . | . . . . . Average Backups 8 | 3 5 8 10 11 Power . | . 1 . . . Propulsion 2 | 1 2 2 3 2 Utility 2 | . 1 1 2 3 Weapon 2 | . 1 4 3 2 Tool/Special . | . . . . . Unused Backups 3 | . . 1 . 2 Power . | . . . . . Propulsion 2 | . . 1 . 1 Utility . | . . . . . Weapon . | . . . . . Tool/Special 1 | . . . . 1 Average Slot Usage (%) 98 | . 98 99 99 96 Engine 9 | . 12 10 9 8 Treads 20 | . 28 22 18 17 Device 15 | . 14 20 18 9 Storage 10 | . 14 11 9 9 Processor 8 | . . 10 9 9 Protection 7 | . . 1 9 16 Energy Gun 4 | . 14 4 . . Energy Cannon 6 | . . 6 9 8 Ballistic Gun 7 | . 13 3 9 8 Impact Weapon 6 | . . 7 8 8 Peak Build Rating 18 | 7 8 16 18 18 Average Rating 13 | 5 7 12 17 16 On Entrance 9 | . 7 8 16 18 Avg Prop Armor Cover (%) . | . . . . . Naked Turns . | . . . . . Heaviest Build 48 | 12 27 42 45 48 Greatest Support 40 | 40 40 40 40 40 Greatest Overweight (x) 3 | 3 . 1 1 1 Average Overweight (x) . | . . . 1 . Largest Inventory Capacity 15 | 8 15 15 15 15 Average Capacity 14 | 7 14 15 15 15 Most Carried 13 | 6 9 13 11 12 Average Carried 8 | 3 5 8 10 11 Final Capacity 15 | 8 15 15 15 15 Final Carried 11 | 5 8 11 11 5 Class Distribution -------------------- 60% | Mutant 39% | Scavenger-Mutant Dominant Class ---------------- Mutant | -10/Materials Mutant | -9/Materials Scavenger-Mutant | -8/Materials Scavenger-Mutant | -8/Garrison Resources | -11 -10 -9 -8 -8 ----------- Run | Yrd Mat Mat Mat Gar Matter Collected 630 | 276 67 193 36 58 Remotely . | . . . . . Salvage Created 1202 | 109 316 474 50 253 Parts 79 | 11 24 29 3 12 Haulers Intercepted . | . . . . . Recyclers Shooed . | . . . . . Parts Field Recycled . | . . . . . Retrieved Matter . | . . . . . Parts Self-Destructed . | . . . . . Prevented . | . . . . . Parts Restored . | . . . . . Kills | -11 -10 -9 -8 -8 ------- Run | Yrd Mat Mat Mat Gar Combat Hostiles Destroyed 30 | . 11 11 1 7 Melee 1 | . . . 1 . Guns 16 | . 11 3 . 2 Cannons 10 | . . 7 . 3 AOE 2 | . . . . 2 Classes Destroyed 7 | 2 3 2 . . Tunneler 2 | 2 . . . . Recycler 1 | 1 . . . . Operator 1 | . . 1 . . Watcher 4 | . 1 3 . . Swarmer 14 | . 6 5 . 3 Grunt 9 | . 5 2 . 2 Sentry 7 | . . 4 1 2 Best Kill Streak 10 | 3 10 6 1 4 Combat Bots Only 9 | . 9 5 1 4 Max Kills in Single Turn 2 | 1 2 1 1 2 Gunslinging 1 | . 1 . . . Exploded 2 | . . . . 2 Melee 1 | . . . 1 . Uniques/NPCs Destroyed . | . . . . . Combat | -11 -10 -9 -8 -8 -------- Run | Yrd Mat Mat Mat Gar Hostile Shots Fired 246 | . 48 84 3 111 Missed 44 | . 5 25 2 12 Hits 202 | . 43 59 1 99 Projectile 202 | . 43 59 1 99 Critical Strikes 10 | . 1 4 . 5 Damage Taken 2782 | . 390 653 17 1722 Core 729 | . 95 82 . 552 Absorbed by Shields . | . . . . . Core Remaining (%) 80 | 100 62 79 . . Volleys Fired 103 | 6 33 42 2 20 Largest 2 | 2 2 2 2 2 Hottest 150 | 70 150 83 83 113 Shots Fired 186 | 12 66 68 4 36 Gun 127 | 12 65 27 2 21 Cannon 54 | . . 41 2 11 Launcher 4 | . . . . 4 Special 1 | . 1 . . . Kinetic 77 | 6 32 26 2 11 Thermal 105 | 6 34 42 2 21 Explosive 4 | . . . . 4 Electromagnetic . | . . . . . Robot Hit Streak 9 | 3 9 7 5 5 Robot Miss Streak 4 | 1 4 2 1 3 Penetration Max . | . . . . . Secondary Targets 4 | . 3 . . 1 Max Gunslinging Chain 1 | . 1 . . 1 Shots Hit Robots 122 | 6 41 47 4 24 Core Hits 58 | 4 20 17 1 16 Critical Kills 1 | . . . 1 . Critical Parts Destroyed 1 | . . 1 . . Critical Strikes 5 | . 3 1 1 . Burn 3 | . 3 . . . Smash 2 | . . 1 1 . Melee Attacks 34 | . . 8 1 25 Impact 34 | . . 8 1 25 Slashing . | . . . . . Piercing . | . . . . . Sneak Attacks . | . . . . . Combat Hostiles . | . . . . . Follow-up Attacks . | . . . . . Damage Inflicted 1932 | 62 430 787 62 591 Guns 902 | 62 430 236 12 162 Cannons 679 | . . 521 36 122 Explosions 209 | . . . . 209 Melee 142 | . . 30 14 98 Ramming . | . . . . . Kinetic 525 | 24 165 236 12 88 Thermal 1056 | 38 265 521 36 196 Explosive 209 | . . . . 209 Electromagnetic . | . . . . . Impact 142 | . . 30 14 98 Slashing . | . . . . . Piercing . | . . . . . Highest Corruption . | . . . . . Average Corruption . | . . . . . Corruption Purged . | . . . . . Corruption Blocked . | . . . . . Overload Shots . | . . . . . Overflow Damage 47 | . . 25 . 22 Projectiles 7 | . . 7 . . Explosions . | . . . . . Melee 40 | . . 18 . 22 Knockbacks . | . . . . . Impact . | . . . . . Kinetic . | . . . . . Secondary . | . . . . . Self-Inflicted Damage 56 | . . . . 56 Shots 3 | . . . . 3 Rammed . | . . . . . Targets Rammed . | . . . . . Kicked . | . . . . . Crushed . | . . . . . Highest Temperature 578 | 70 170 208 21 578 Average Temperature 95 | 30 58 55 11 233 Received Heat Transfer 792 | . 96 201 . 495 Effects 12 | . . . . 12 Energy Bleed 3 | . . . . 3 Interference 5 | . . . . 5 Matter Decay 1 | . . . . 1 Damage (minor) 1 | . . . . 1 Damage (core) 2 | . . . . 2 Siege Activations . | . . . . . Martial Activations . | . . . . . Shielding Activations . | . . . . . Robots Disrupted . | . . . . . Combat Hostiles . | . . . . . Robots Corrupted 1 | . . 1 . . Combat Hostiles 1 | . . 1 . . Parts Fried 1 | . . 1 . . Impact Corruptions 2 | . . 1 . 1 Robots Melted . | . . . . . Combat Hostiles . | . . . . . Parts Melted 2 | . 1 1 . . Heat Transferred 2738 | 111 999 1110 74 444 Parts Sabotaged . | . . . . . Parts Stolen . | . . . . . Parts Stripped . | . . . . . Power Chain Reactions . | . . . . . Alert | -11 -10 -9 -8 -8 ------- Run | Yrd Mat Mat Mat Gar Maximum Alert Level . | . . . . . Low Security (%) 100 | 100 100 100 100 100 Level 1 . | . . . . . Level 2 . | . . . . . Level 3 . | . . . . . Level 4 . | . . . . . Level 5 . | . . . . . High Security . | . . . . . Max Security . | . . . . . Peak Influence 190 | 10 187 132 51 190 Initial 74 | . . 74 41 13 Average 70 | 1 86 69 33 85 Influence Increases 953 | 15 268 351 39 280 Destroy 0b10 Robot/C 600 | . 220 220 20 140 Destroy 0b10 Robot/NC 45 | 15 5 20 . 5 Destroy Leader 128 | . 42 66 10 10 Successful Hack 48 | . . 9 9 30 Disable Machine 30 | . . . . 30 Destroy Structure 72 | . 1 6 . 65 Partial Spotted 15 | . . 15 . . Lose Combat Pursuer 15 | . . 15 . . Influence Decreases 810 | 15 91 429 118 157 Entered New Map 168 | . . 103 58 7 Time Decay 452 | 15 81 296 60 . Lost Part 190 | . 10 30 . 150 Squads Dispatched 3 | . 2 1 . . Investigation 1 | . 1 . . . Extermination . | . . . . . Reinforcement 2 | . 1 1 . . Assault . | . . . . . Garrison . | . . . . . Intercept . | . . . . . Searches Triggered . | . . . . . Construction Impeded . | . . . . . Haulers Reinforced . | . . . . . Active Scanning Responses . | . . . . . Cargo Convoy Interrupts . | . . . . . Stealth | -11 -10 -9 -8 -8 --------- Run | Yrd Mat Mat Mat Gar Distress Signals 6 | . 1 4 1 . Communications Jammed . | . . . . . Distress Signals . | . . . . . Times Spotted 46 | . 13 19 2 12 Peak Tracking Total 8 | . 5 6 2 8 Tactical Retreats 1 | . . 1 . . Traps | -11 -10 -9 -8 -8 ------- Run | Yrd Mat Mat Mat Gar Traps Triggered 1 | . 1 . . . Indirectly . | . . . . . Trap Hack Attempts . | . . . . . Triggered . | . . . . . Disarmed . | . . . . . Reprogrammed . | . . . . . Reused . | . . . . . Traps Extracted . | . . . . . Installed . | . . . . . Triggered . | . . . . . Machines | -11 -10 -9 -8 -8 ---------- Run | Yrd Mat Mat Mat Gar Machines Disabled 2 | . . . . 2 Max in Single Turn 1 | . . . . 1 Machines Repaired . | . . . . . Machines Dismantled . | . . . . . Machines Sabotaged . | . . . . . Overloaded Fab Kills . | . . . . . Hacking | -11 -10 -9 -8 -8 --------- Run | Yrd Mat Mat Mat Gar Machines Accessed 6 | . . 2 2 2 Terminals 4 | . . 1 1 2 Fabricators . | . . . . . Repair Stations . | . . . . . Recycling Units 1 | . . 1 . . Scanalyzers . | . . . . . Garrison Access 1 | . . . 1 . Total Hacks 11 | . . 3 6 2 Successful 7 | . . 2 3 2 Failed 4 | . . 1 3 . Catastrophic . | . . . . . Database Lockouts . | . . . . . Manual 7 | . . 2 5 . Terminals 9 | . . 2 5 2 Fabricators . | . . . . . Repair Stations . | . . . . . Recycling Units 1 | . . 1 . . Scanalyzers . | . . . . . Garrison Access 1 | . . . 1 . Terminal Hacks 4 | . . 1 1 2 Level Access Points 1 | . . 1 . . Emergency Access Points 1 | . . . . 1 Recall Reinforcements 1 | . . . 1 . Security Stations 1 | . . . . 1 Fabricator Hacks . | . . . . . Repair Station Hacks . | . . . . . Recycling Unit Hacks 1 | . . 1 . . Retrieve Components 1 | . . 1 . . Scanalyzer . | . . . . . Garrison Access Hacks 1 | . . . 1 . Unlock Access 1 | . . . 1 . Unauthorized Hacks 1 | . . . 1 . Terminals 1 | . . . 1 . Botnet 1 | . . . 1 . Fabricators . | . . . . . Repair Stations . | . . . . . Recycling Units . | . . . . . Scanalyzers . | . . . . . Garrison Access . | . . . . . Data Cores Recovered 1 | . . 1 . . Used . | . . . . . Hacking Detections 2 | . . 1 1 . Full Trace Events . | . . . . . Feedback Events . | . . . . . Feedback Blocked . | . . . . . Robot Schematics Acquired . | . . . . . Robots Built . | . . . . . Authchips . | . . . . . Time . | . . . . . Total Robot Build Rating . | . . . . . Part Schematics Acquired . | . . . . . Parts Built . | . . . . . Authchips . | . . . . . Time . | . . . . . Total Part Build Rating . | . . . . . Part Studies Acquired . | . . . . . Parts Repaired . | . . . . . Time . | . . . . . Parts Recycled . | . . . . . Recycled Matter . | . . . . . Retrieved Matter . | . . . . . Retrieved Components 2 | . . 2 . . Parts Scanalyzed . | . . . . . Part Schematics Acquired . | . . . . . Parts Damaged . | . . . . . Bothacking | -11 -10 -9 -8 -8 ------------ Run | Yrd Mat Mat Mat Gar Used RIF Installer . | . . . . . Robots Hacked . | . . . . . Non-combat . | . . . . . Combat . | . . . . . Robot Hacks Applied . | . . . . . Relay Couplers Released . | . . . . . Fabnet Peak Effective % . | . . . . . Robots Rewired . | . . . . . Allies Hacked . | . . . . . Hacks Repelled . | . . . . . Allies | -11 -10 -9 -8 -8 -------- Run | Yrd Mat Mat Mat Gar Total Allies . | . . . . . Largest Group . | . . . . . Highest-Rated Group . | . . . . . Highest-Rated Ally . | . . . . . Total Orders . | . . . . . Ally Attacks . | . . . . . Total Damage . | . . . . . Kills . | . . . . . Allies Corrupted . | . . . . . Allies Melted . | . . . . . Intel | -11 -10 -9 -8 -8 ------- Run | Yrd Mat Mat Mat Gar Active Infowar (turns) 1745 | 9 272 740 134 590 Terrain 875 | . . 738 134 3 Traps 455 | . . . . 455 Seismic 1200 | 9 272 650 134 135 Robot Analysis Total . | . . . . . Derelict Logs Recovered . | . . . . . Drone Launches . | . . . . . Drone Recoveries . | . . . . . Exploration | -11 -10 -9 -8 -8 ------------- Run | Yrd Mat Mat Mat Gar Turns Passed 1880 | 121 272 740 134 613 Spaces Moved 753 | 62 100 349 45 197 Core 14 | 14 . . . . Treads 739 | 48 100 349 45 197 Legs . | . . . . . Wheels . | . . . . . Hover . | . . . . . Flight . | . . . . . Fastest Speed 50 | 50 160 160 240 160 Average Speed 184 | 142 160 161 240 239 Slowest Speed 240 | 200 160 240 240 240 Overloaded Moves . | . . . . . Propulsion Burnouts . | . . . . . Robots Hopped . | . . . . . Potential Cave-ins . | . . . . . Cave-ins Triggered . | . . . . . Exploration Rate (%) 23 | 4 30 37 5 39 Regions Visited 4 Branch Regions . Pre-discovered Areas . | . . . . . Known Exits Taken 2 | . . 1 1 . Unknown Exits Taken 2 | 1 1 . . . Scrap Searched . | . . . . . Spaces Dug 8 | . 1 5 . 2 Terrain Destroyed 45 | . 1 5 . 39 Melee 7 | . . 5 . 2 Projectile 1 | . 1 . . . AOE 37 | . . . . 37 Terrain Rammed . | . . . . . Walls Destroyed . | . . . . . Machines Disabled . | . . . . . Actions | -11 -10 -9 -8 -8 --------- Run | Yrd Mat Mat Mat Gar Total 999 | 81 150 443 66 259 Wait 50 | . 9 20 15 6 Move 749 | 61 99 348 44 197 Hop . | . . . . . Pick Up 22 | 5 4 10 2 1 Fast Attach 8 | 7 . . . 1 Attach 16 | 1 1 5 2 7 Detach 1 | 1 . . . . Swap 12 | . 3 7 . 2 Drop 4 | . 1 3 . . Fire 103 | 6 33 42 2 20 Melee 34 | . . 8 1 25 Ram . | . . . . . Kick . | . . . . . Crush . | . . . . . Escape Stasis . | . . . . . Rewire . | . . . . . Trap . | . . . . . Miscellaneous . | . . . . . Route ------- -11/Scrapyard -10/Materials -9/Materials (discovered 4 exits: *Mat x3 / [*Min]) -8/Materials -8/Garrison History --------- Turn | Location | Event 28 | -11/Scrapyard | Discovered new exit (range 13) 122 | -11/Scrapyard | Entered Materials 307 | -10/Materials | Destroyed 9 combat bots 312 | -10/Materials | Discovered new exit (range 15) 316 | -10/Materials | Build established: Mutant 394 | -10/Materials | Entered another Materials area 394 | -9/Materials | Evolved 2 slots: Utility x2 755 | -9/Materials | Discovered new exit (range 13) 874 | -9/Materials | Identified exit to Materials 1134 | -9/Materials | Entered another Materials area 1134 | -8/Materials | Evolved 2 slots: Utility x1, Weapon x1 1265 | -8/Materials | Identified exit to Garrison 1268 | -8/Materials | Entered Garrison 1424 | -8/Garrison | Build established: Scavenger-Mutant 1610 | -8/Garrison | Learned Materials security intel 1712 | -8/Garrison | Triggered checkpoint 1857 | -8/Garrison | Core integrity fell below 50% 1861 | -8/Garrison | Core integrity fell below 20% 1881 | -8/Garrison | Destroyed by Y-45 Defender with Beam Rifle Last Messages --------------- 01860_ Overheating: System interference. 01860_ Hammer temporarily disabled. 01860_ Signal Interpreter temporarily disabled. 01861_ Overheating: Energy bleed (-8). 01862_ Overheating: System interference. 01862_ Mni. Grenade Launcher temporarily disabled. 01862_ Penetrated by Slug. 01863_ Hammer destroyed. 01865_ The unstable cave ceiling collapses. 01871_ Penetrated by Slug. 01871_ Mni. Grenade Launcher destroyed. 01871_ Heat Sink destroyed. 01873_ The unstable cave ceiling collapses. 01873_ Acquired 23 matter. 01877_ Penetrated by Slug. 01877_ Imp. Ion Engine destroyed. 01881_ Acquired Lgt. Treads. 01881_ Critical hit (Burn: +37). Map ----- +----------------------------------------------------+ | ?????# ####+### #??????????????????? | | ?????+ #??????????????????? | | ?????# #??????????????????? | | ??????????# ^^ ## ###########??????????????????? | | ?????# ## ^^ ## ###??????????????????????????? | | ?????" #??????????????????????????? | | ?????" *#??????????????????????????? | | ?????" =%#####??????????????????????? | | ???+?" [%[" #??????????????????????? | | ?????# ## ## ##### #??????????????????????? | | ?????# ???# ## #####;#######????????????????? | | ????????? ##???????????????? | | ?????+? ????????? | | ?????? #####;#### ######???????????? | | ??????# ##""""###+##???# #???? #????????????????? | | ??????# ????????????????# #???? #????????????????? | | ??????????????+?????????# #### ##???????????????? | | ?????????????????# ######g# # = #???????????????? | | ??????+??????# # %=#???????????????? | | ?????????????????# ###### # # #####???????????? | | ??????????????????????###[ Y%% #????????? | | ??????????????????????# ##???????????????? | | ??????????????????????# #???????????????? | | ?+???????????????# #### h # ????????? | | ?????????????????# +? ?????????? | | ?????????????????# ##### @ +??? ?????????? | | ?+????????????????????# #[####?+??#####??????????? | | ??????????????????????## #???????????????+??????? | | ????????????????????????# "??????????????????????? | | ????????????????????????# "?+????????????????????? | | ??????????????????+?????# "??????????????????????? | | ????????????????????????# #??????????????????????? | | ????????????????????????# #??????????????????????? | | ????????????????????????# #??????????????????????? | | ????????????????????????? ?????????????????????+?? | | ????????????????????????? ???????????????????????? | | ????????????????????????? ???????????????????????? | | ????????????????????????? ???????????????????????? | | ????????????????????????? ?????????+?????????????? | | ????????????????????????? ???????????????????????? | | ?????????????????????????+???????????????????????? | | ?????????????????????????????????????????????????? | | ?????????????????????????????????????????????????? | | ?????????????????????????????????????????????????? | | ?????????????????????????????????????????????????? | | ?????????????????????????????????????????????????? | | ?????????????????????????????????????????????????? | | ?????????????????????????????????????????????????? | | ?????????????????????????????????????????????????? | | ?????????????????????????????????????????????????? | +----------------------------------------------------+ Best States ------------- Heat Dissipation 41 Energy Generation 12 Energy Capacity 265 Matter Stores 300 Matter Capacity 300 Sight Range 16 Terrain Scan Range 16 Terrain Scan Density 10 Armor Coverage 375 Evasion (%) 50 Recoil Reduction 2 Item Schematics ----------------- None Robot Schematics ------------------ None Fabricated ------------ Nothing Repaired ---------- Nothing Studied --------- None Alien Tech Used ----------------- None Achievements -------------- None Challenges ------------ None Game ------ Seed HardenedDirectedPenetrator Manual? 0 Play Time 00:12:50 Cumulative 61.9 hours Start 2026.03.13 @ 14:24:04 End 2026.03.13 @ 14:37:09 Sessions 1 Manual Loads 0 Difficulty Rogue Special Mode None Game No. 142 Rogue 142 Adventurer 0 Explorer 0 Win Type - Total 0 Types 0/0/0/0/0/0/0/0/0/0 Lore% 36 Gallery% 42 Achievement% 33 Wizard Run 0 Options --------- Layout 2 ASCII 0 Keyboard 1 Movement Arrows Keybinds 0 Fullscreen 1 Font 24/Smallcaps Map View 50x44 Zoom Use 0% Tactical HUD 1 Map Filters NONE Filters NONE Steam 1 RUN: 0061c28d-2086-40f6-b412-98b737c3a73d